{"text_format":"1","workbook":"xlsx","n_sheets":15,"sheets":["Veri_Girişi","İhtiyaç_Listesi","Komisyon_Onay","Fiyat_Araş_Teklif","Teklif_Mektubu","Onay","Yaklaşık_Maliyet","Piyasa_Arş_Tut","Muayene_Kabul","Harcama","Teslim","Mys_yukle","Teknik_Şartname","Açıklama","Veri"],"not_rendered":{"charts":0,"images":25,"macros":1,"external_links":0,"defined_names":11,"comments":0,"pivot_tables":0},"unopened":[],"bounds":{"document_bytes":16777216,"sheet_cells":100000,"rows_first":2000,"rows_last":500,"rows_between":2000,"halvings":0,"cell_chars":16384,"cell_head_chars":4096},"cells_cut":0,"cells_raw":0,"read":"whole","date_system":"1900"}

{"sheet":"Veri_Girişi","index":0,"n_rows":0,"n_cols":0,"rows_kept":0,"cut":false,"hidden":false,"merged":[[0,0,1048575,16383]]}

{"sheet":"İhtiyaç_Listesi","index":1,"n_rows":45,"n_cols":18,"rows_kept":45,"cut":false,"hidden":false,"merged":[[0,19,1048575,16383],[29,11,29,16],[31,0,31,18],[34,13,34,18],[35,13,35,18],[39,0,39,18],[40,0,40,18],[42,0,42,18],[43,0,43,18],[44,0,44,18],[26,0,26,2],[26,3,26,8],[26,9,26,10],[26,11,26,12],[26,13,26,18],[28,0,28,18],[24,0,24,2],[24,3,24,8],[25,0,25,2],[25,3,25,8],[24,9,24,14],[24,15,24,16],[24,17,24,18],[25,9,25,14],[25,15,25,16],[25,17,25,18],[22,0,22,2],[22,3,22,8],[23,0,23,2],[23,3,23,8],[22,9,22,14],[22,15,22,16],[22,17,22,18],[23,9,23,14],[23,15,23,16],[23,17,23,18],[20,0,20,2],[20,3,20,8],[21,0,21,2],[21,3,21,8],[20,9,20,14],[20,15,20,16],[20,17,20,18],[21,9,21,14],[21,15,21,16],[21,17,21,18],[18,0,18,2],[18,3,18,8],[19,0,19,2],[19,3,19,8],[18,9,18,14],[18,15,18,16],[18,17,18,18],[19,9,19,14],[19,15,19,16],[19,17,19,18],[16,0,16,2],[16,3,16,8],[17,0,17,2],[17,3,17,8],[16,9,16,14],[16,15,16,16],[16,17,16,18],[17,9,17,14],[17,15,17,16],[17,17,17,18],[14,0,14,2],[14,3,14,8],[15,0,15,2],[15,3,15,8],[14,9,14,14],[14,15,14,16],[14,17,14,18],[15,9,15,14],[15,15,15,16],[15,17,15,18],[12,0,12,2],[12,3,12,8],[13,0,13,2],[13,3,13,8],[12,9,12,14],[12,15,12,16],[12,17,12,18],[13,9,13,14],[13,15,13,16],[13,17,13,18],[11,0,11,2],[11,3,11,8],[8,0,8,18],[10,0,10,2],[10,3,10,8],[11,17,11,18],[10,17,10,18],[10,15,10,16],[10,9,10,14],[11,9,11,14],[11,15,11,16],[0,0,0,18],[1,0,1,18],[2,0,2,18],[3,0,3,18],[5,0,5,1],[6,0,6,1],[5,15,5,18],[6,3,6,10],[5,3,5,11]]}
["T.C."]
["ŞEMDİNLİ KAYMAKAMLIĞI"]
["İlçe Milli Eğitim Müdürlüğü"]
["Çalışkanlar Köyü Halil Sever Ortaokulu Müdürlüğü"]
[]
["Sayı",null,":",{"$f":"Veri!N2","v":"67484744-934.01/148"},null,null,null,null,null,null,null,null,null,null,null,"14.11.2024"]
["Konu",null,":"]
[]
["MAL/MALZEME İHTİYAÇ LİSTESİ"]
[]
["Sıra No",null,null,"Mal/Malzemenin Adı",null,null,null,null,null,"Özelliği",null,null,null,null,null,"Miktarı",null,"Ölçeği"]
[{"$f":"IF(NOT(ISBLANK(D12)),COUNTA($D$12:D12),\"\")","v":""}]
[{"$f":"IF(NOT(ISBLANK(D13)),COUNTA($D$12:D13),\"\")","v":""}]
[{"$f":"IF(NOT(ISBLANK(D14)),COUNTA($D$12:D14),\"\")","v":""}]
[{"$f":"IF(NOT(ISBLANK(D15)),COUNTA($D$12:D15),\"\")","v":""}]
[{"$f":"IF(NOT(ISBLANK(D16)),COUNTA($D$12:D16),\"\")","v":""}]
[{"$f":"IF(NOT(ISBLANK(D17)),COUNTA($D$12:D17),\"\")","v":""}]
[{"$f":"IF(NOT(ISBLANK(D18)),COUNTA($D$12:D18),\"\")","v":""}]
[{"$f":"IF(NOT(ISBLANK(D19)),COUNTA($D$12:D19),\"\")","v":""}]
[{"$f":"IF(NOT(ISBLANK(D20)),COUNTA($D$12:D20),\"\")","v":""}]
[{"$f":"IF(NOT(ISBLANK(D21)),COUNTA($D$12:D21),\"\")","v":""}]
[{"$f":"IF(NOT(ISBLANK(D22)),COUNTA($D$12:D22),\"\")","v":""}]
[{"$f":"IF(NOT(ISBLANK(D23)),COUNTA($D$12:D23),\"\")","v":""}]
[{"$f":"IF(NOT(ISBLANK(D24)),COUNTA($D$12:D24),\"\")","v":""}]
[{"$f":"IF(NOT(ISBLANK(D25)),COUNTA($D$12:D25),\"\")","v":""}]
[{"$f":"IF(NOT(ISBLANK(D26)),COUNTA($D$12:D26),\"\")","v":""}]
[]
[]
[{"$f":"Veri!A7","v":"ÇALIŞKANLAR KÖYÜ HALİL SEVER ORTAOKULU MÜDÜRLÜĞÜ MÜDÜRLÜĞÜNE"}]
[null,null,null,null,null,null,null,null,null,null,null,"(İhale/Harcama Yetkilisi)"]
[]
[{"$f":"\"       Müdürlüğümüzün ihtiyacı olan mal/malzeme  yukarıya çıkarılmış olup \"&Veri!B40&\" gereğince Doğrudan Temin yoluyla satın alınması için uygun görüldüğü takdirde OLUR'larınıza arz ederim.\"","v":"       Müdürlüğümüzün ihtiyacı olan mal/malzeme  yukarıya çıkarılmış olup 4734 Sayılı Kamu İhale Kanunu'nun 22/d Maddesi gereğince Doğrudan Temin yoluyla satın alınması için uygun görüldüğü takdirde OLUR'larınıza arz ederim."}]
[]
[]
[]
[]
[]
[]
[]
["OLUR"]
["14.11.2024"]
[]
[]
[]
["İhale(Harcama Yetkilisi"]

{"sheet":"Komisyon_Onay","index":2,"n_rows":41,"n_cols":15,"rows_kept":41,"cut":false,"hidden":false,"merged":[[40,0,40,1],[40,2,40,8],[40,9,40,12],[40,13,40,18],[38,0,38,1],[38,2,38,8],[38,9,38,12],[38,13,38,18],[39,0,39,1],[39,2,39,8],[39,9,39,12],[39,13,39,18],[36,0,36,18],[37,0,37,1],[37,2,37,8],[37,9,37,12],[37,13,37,18],[6,0,6,1],[6,3,7,9],[0,0,0,18],[1,0,1,18],[2,0,2,18],[3,0,3,18],[5,0,5,1],[5,3,5,10],[5,14,5,18],[21,0,21,18],[9,0,9,18],[10,13,10,17],[14,13,14,17],[15,13,15,17],[17,0,17,18],[18,0,18,18],[19,0,19,18],[20,0,20,18],[12,0,13,18],[26,13,26,18],[27,2,27,8],[27,9,27,12],[27,13,27,18],[22,0,22,18],[24,0,24,18],[25,0,25,1],[25,2,25,8],[25,9,25,12],[25,13,25,18],[26,0,26,1],[27,0,27,1],[26,2,26,8],[26,9,26,12],[31,0,31,1],[31,2,31,8],[31,9,31,12],[31,13,31,18],[28,0,28,1],[28,2,28,8],[0,19,1048575,16383],[34,0,34,1],[34,2,34,8],[34,9,34,12],[34,13,34,18],[30,0,30,18],[33,0,33,1],[33,2,33,8],[33,9,33,12],[33,13,33,18],[32,0,32,1],[32,2,32,8],[32,9,32,12],[32,13,32,18],[28,9,28,12],[28,13,28,18]]}
["T.C."]
["ŞEMDİNLİ KAYMAKAMLIĞI"]
["İlçe Milli Eğitim Müdürlüğü"]
["Çalışkanlar Köyü Halil Sever Ortaokulu Müdürlüğü"]
[]
["Sayı",null,":",{"$f":"Veri!N3","v":"67484744-934.01.99/148"},null,null,null,null,null,null,null,null,null,null,"14.11.2024"]
["Konu",null,":","Yaklaşık Maliyet, Piyasa Araştırması,         ve Muayene Kabul Komisyon Onayı"]
[]
[]
[{"$f":"Veri!A7","v":"ÇALIŞKANLAR KÖYÜ HALİL SEVER ORTAOKULU MÜDÜRLÜĞÜ MÜDÜRLÜĞÜNE"}]
[null,null,null,null,null,null,null,null,null,null,null,null,null,"(İhale/Harcama Yetkilisi)"]
[]
[{"$f":"\"         \"&Veri!G12&\" işine ait ihtiyac liste onayı ekte sunuşmuştur. Söz konusu mal/malzeme   \"&Veri!B40&\" gereğince Doğrudan Temin usulü ile satın alınacağından;\"&\" 1) Her türlü fiyat araştırmasını yapmak ve yaklaşık maliyet cetvelini hazırlayarak onaya sunmak üzere aşağıda isim ve\"&\" ünvanları yazılı memurlardan fiyat araştırma komisyonu,\"&\"2)  Onay Belgesi'nin tanziminden sonra yazılı teklif mektupları alarak değerlendirmek ve ihaleyi sonuçlandırarak onaya sunmak üzere yine aşağıda yazılı memurlardan ihale komisyonu,\"&\"3) Mal/malzeme tesliminden sonra satın alınan mal/malzemelerin özelliklerini ve  sayılarını kontrol ederek teslim almak, bir tutanağa bağlayarak sistem üzerinden \"&\"Taşınır İşlem Fişine aktarmak üzere aşağıda yazılı memurlardan muayene ve teslim alma komisyonu oluşturulması müdürlüğümüzce uygun görülmektedir.Makamınızca da uygun görüldüğü takdirde OLUR'larınıza arz ederim.\"","v":"          işine ait ihtiyac liste onayı ekte sunuşmuştur. Söz konusu mal/malzeme   4734 Sayılı Kamu İhale Kanunu'nun 22/d Maddesi gereğince Doğrudan Temin usulü ile satın alınacağından; 1) Her türlü fiyat araştırmasını yapmak ve yaklaşık maliyet cetvelini hazırlayarak onaya sunmak üzere aşağıda isim ve ünvanları yazılı memurlardan fiyat araştırma komisyonu,2)  Onay Belgesi'nin tanziminden sonra yazılı teklif mektupları alarak değerlendirmek ve ihaleyi sonuçlandırarak onaya sunmak üzere yine aşağıda yazılı memurlardan ihale komisyonu,3) Mal/malzeme tesliminden sonra satın alınan mal/malzemelerin özelliklerini ve  sayılarını kontrol ederek teslim almak, bir tutanağa bağlayarak sistem üzerinden Taşınır İşlem Fişine aktarmak üzere aşağıda yazılı memurlardan muayene ve teslim alma komisyonu oluşturulması müdürlüğümüzce uygun görülmektedir.Makamınızca da uygun görüldüğü takdirde OLUR'larınıza arz ederim."}]
[]
[]
[]
[]
["OLUR"]
["14.11.2024"]
[]
[]
[]
["İhale / HarcamaYetkilisi"]
[]
["Fiyat Araştırma ve Yaklaşık Maliyet Tesbit Komisyonu Adı, Ünvanı ve Görevleri"]
["Sıra No",null,"Adı Soyadı",null,null,null,null,null,null,"Ünvanı",null,null,null,"Görevi"]
[1]
[2]
[3]
[]
[" Piyasa Araştırma-Satın Alma İhale Komisyonu Adı, Ünvanı ve Görevleri"]
["Sıra No",null,"Adı Soyadı",null,null,null,null,null,null,"Ünvanı",null,null,null,"Görevi"]
[1]
[2]
[3]
[]
[" Muayene ve Teslim Alma Komisyonu Adı, Ünvanı ve Görevleri"]
["Sıra No",null,"Adı Soyadı",null,null,null,null,null,null,"Ünvanı",null,null,null,"Görevi"]
[1]
[2]
[3]

{"sheet":"Fiyat_Araş_Teklif","index":3,"n_rows":44,"n_cols":19,"rows_kept":44,"cut":false,"hidden":false,"merged":[[29,11,29,12],[20,1,20,5],[21,1,21,5],[22,1,22,5],[23,1,23,5],[24,1,24,5],[20,11,20,12],[21,11,21,12],[22,11,22,12],[23,11,23,12],[20,6,20,10],[21,6,21,10],[22,6,22,10],[23,6,23,10],[24,6,24,10],[25,6,25,10],[25,1,25,5],[26,1,26,5],[27,1,27,5],[28,1,28,5],[27,6,27,10],[28,6,28,10],[27,13,27,14],[28,13,28,14],[9,0,10,21],[20,13,20,14],[21,13,21,14],[22,13,22,14],[23,13,23,14],[24,13,24,14],[28,11,28,12],[25,13,25,14],[24,11,24,12],[25,11,25,12],[26,11,26,12],[27,11,27,12],[26,13,26,14],[26,6,26,10],[18,15,18,17],[18,18,18,21],[19,15,19,17],[19,18,19,21],[16,15,16,21],[17,18,17,21],[17,15,17,17],[17,13,17,14],[6,0,6,1],[6,3,6,13],[0,0,0,21],[1,0,1,21],[2,0,2,21],[3,0,3,21],[5,0,5,1],[13,17,13,21],[14,17,14,21],[12,17,12,21],[8,0,8,21],[12,0,12,5],[13,0,13,5],[14,0,14,5],[12,6,12,16],[13,6,13,16],[14,6,14,16],[5,16,5,21],[5,3,5,11],[17,11,17,12],[18,11,18,12],[18,13,18,14],[16,0,16,14],[17,6,17,10],[17,1,17,5],[18,1,18,5],[19,1,19,5],[19,13,19,14],[19,11,19,12],[18,6,18,10],[19,6,19,10],[21,18,21,21],[22,18,22,21],[23,18,23,21],[24,18,24,21],[25,18,25,21],[28,18,28,21],[31,15,31,17],[31,18,31,21],[29,18,29,21],[30,18,30,21],[29,15,29,17],[30,15,30,17],[21,15,21,17],[22,15,22,17],[23,15,23,17],[24,15,24,17],[25,15,25,17],[28,15,28,17],[31,11,31,12],[29,13,29,14],[30,13,30,14],[31,13,31,14],[36,13,36,20],[37,0,37,6],[37,7,37,10],[37,13,38,20],[32,15,32,17],[32,18,32,21],[33,11,33,17],[33,18,33,21],[36,0,36,11],[32,11,32,12],[32,13,32,14],[32,1,32,5],[31,6,31,10],[32,6,32,10],[29,1,29,5],[30,1,30,5],[31,1,31,5],[29,6,29,10],[30,6,30,10],[30,11,30,12],[0,22,1048575,16383],[27,15,27,17],[27,18,27,21],[26,18,26,21],[20,15,20,17],[20,18,20,21],[26,15,26,17],[43,0,43,6],[43,7,43,10],[38,0,38,6],[38,7,38,10],[39,0,39,6],[39,7,39,10],[40,0,40,6],[40,7,40,10],[42,13,42,20],[42,0,42,6],[42,7,42,10],[41,0,41,6],[41,7,41,10],[39,13,39,20],[40,13,40,20],[41,13,41,20],[34,0,34,21]]}
["T.C."]
["ŞEMDİNLİ KAYMAKAMLIĞI"]
["İlçe Milli Eğitim Müdürlüğü"]
["Çalışkanlar Köyü Halil Sever Ortaokulu Müdürlüğü"]
[]
["Sayı",null,":",{"$f":"Veri!N4","v":"67484744-934.01.03/148"},null,null,null,null,null,null,null,null,null,null,null,null,"14.11.2024"]
["Konu",null,":","Fiyat Araştırması"]
[]
["İLGİLİ KİŞİ/FİRMA"]
[{"$f":"\"       \"&Veri!G12&\" işine ait aşağıda cinsi, özellikleri ve miktarları yazılı mallar / hizmetler \"&Veri!B40&\" gereğince Doğrudan Temin Usulüyle satın alınacağından\"&\" yaklaşık maliyetin tespiti için piyasa araştırması yapılmaktadır, birim fiyatının ve tutarının KDV hariç bildirmenizi rica ederim/ederiz.\"","v":"        işine ait aşağıda cinsi, özellikleri ve miktarları yazılı mallar / hizmetler 4734 Sayılı Kamu İhale Kanunu'nun 22/d Maddesi gereğince Doğrudan Temin Usulüyle satın alınacağından yaklaşık maliyetin tespiti için piyasa araştırması yapılmaktadır, birim fiyatının ve tutarının KDV hariç bildirmenizi rica ederim/ederiz."}]
[]
[]
[]
[]
[]
[]
["SATIN ALINACAK MAL/MALZEME LİSTESİ",null,null,null,null,null,null,null,null,null,null,null,null,null,null,"Teklif Edilen KDV Hariç"]
["S.No","Malzemenin Adı",null,null,null,null,"Özelliği",null,null,null,null,"Miktarı",null,"Ölçeği",null,"Birim Fiyatı",null,null,"Tutarı"]
[{"$f":"IF(NOT(ISBLANK(B19)),COUNTA($B$19:B19),\"\")","v":""}]
[{"$f":"IF(NOT(ISBLANK(B20)),COUNTA($B$19:B20),\"\")","v":""}]
[{"$f":"IF(NOT(ISBLANK(B21)),COUNTA($B$19:B21),\"\")","v":""}]
[{"$f":"IF(NOT(ISBLANK(B22)),COUNTA($B$19:B22),\"\")","v":""}]
[{"$f":"IF(NOT(ISBLANK(B23)),COUNTA($B$19:B23),\"\")","v":""}]
[{"$f":"IF(NOT(ISBLANK(B24)),COUNTA($B$19:B24),\"\")","v":""}]
[{"$f":"IF(NOT(ISBLANK(B25)),COUNTA($B$19:B25),\"\")","v":""}]
[{"$f":"IF(NOT(ISBLANK(B26)),COUNTA($B$19:B26),\"\")","v":""}]
[{"$f":"IF(NOT(ISBLANK(B27)),COUNTA($B$19:B27),\"\")","v":""}]
[{"$f":"IF(NOT(ISBLANK(B28)),COUNTA($B$19:B28),\"\")","v":""}]
[{"$f":"IF(NOT(ISBLANK(B29)),COUNTA($B$19:B29),\"\")","v":""}]
[{"$f":"IF(NOT(ISBLANK(B30)),COUNTA($B$19:B30),\"\")","v":""}]
[{"$f":"IF(NOT(ISBLANK(B31)),COUNTA($B$19:B31),\"\")","v":""}]
[{"$f":"IF(NOT(ISBLANK(B32)),COUNTA($B$19:B32),\"\")","v":""}]
[{"$f":"IF(NOT(ISBLANK(B33)),COUNTA($B$19:B33),\"\")","v":""}]
[null,null,null,null,null,null,null,null,null,null,null,"     KDV Hariç Teklif Edilen  Fiyat:"]
["                 Yukarıda ismi belirtilen mal/malzemenin birim ve toplam fiyatı günün şartlarına göre belirlenmiş olup belirtilen fiyatlar üzerinden vermeyi teklif ediyorum.  Arz olunur."]
[]
["DİĞER ŞARTLAR",null,null,null,null,null,null,null,null,null,null,null,null,"Tarih: "]
["Teslim Süresi",null,null,null,null,null,null,5,null,null,null,null,null,"Adı Soyadı, Ticaret Ünvanı ,İmza,Kaşe veya Açık Adres,Tel. No"]
["Teslim Edilecek Parti Miktarı",null,null,null,null,null,null,3]
["Nakliye ve Sigortanın Kime Ait Olduğu",null,null,null,null,null,null,"Satıcıya",null,null,null,null,null,"…...................................................................."]
["Diğer Özel Şartlar",null,null,null,null,null,null,null,null,null,null,null,null,"…...................................................................."]
["Uyulması Gereken Standartlar",null,null,null,null,null,null,"TSE",null,null,null,null,null,"…...................................................................."]
["Teknik Şartname",null,null,null,null,null,null,null,null,null,null,null,null,"…...................................................................."]
["Diğer Hususlar"]

{"sheet":"Teklif_Mektubu","index":4,"n_rows":44,"n_cols":19,"rows_kept":44,"cut":false,"hidden":false,"merged":[[0,22,1048575,16383],[1,0,1,21],[2,0,2,21],[3,0,3,21],[5,0,5,1],[5,3,5,11],[5,16,5,21],[6,0,6,1],[6,3,6,13],[13,0,13,5],[13,6,13,16],[13,17,13,21],[14,0,14,5],[14,6,14,16],[14,17,14,21],[12,0,12,5],[12,6,12,16],[12,17,12,21],[18,1,18,5],[18,6,18,10],[16,0,16,14],[16,15,16,21],[8,0,8,21],[17,1,17,5],[17,6,17,10],[17,11,17,12],[17,13,17,14],[17,15,17,17],[17,18,17,21],[0,0,0,21],[19,1,19,5],[19,6,19,10],[19,11,19,12],[19,13,19,14],[19,15,19,17],[19,18,19,21],[18,11,18,12],[18,13,18,14],[18,15,18,17],[18,18,18,21],[9,0,10,21],[21,1,21,5],[21,6,21,10],[21,11,21,12],[21,13,21,14],[21,15,21,17],[21,18,21,21],[20,1,20,5],[20,6,20,10],[20,11,20,12],[20,13,20,14],[20,15,20,17],[20,18,20,21],[23,1,23,5],[23,6,23,10],[23,11,23,12],[23,13,23,14],[23,15,23,17],[23,18,23,21],[22,1,22,5],[22,6,22,10],[22,11,22,12],[22,13,22,14],[22,15,22,17],[22,18,22,21],[25,1,25,5],[25,6,25,10],[25,11,25,12],[25,13,25,14],[25,15,25,17],[25,18,25,21],[24,1,24,5],[24,6,24,10],[24,11,24,12],[24,13,24,14],[24,15,24,17],[24,18,24,21],[27,1,27,5],[27,6,27,10],[27,11,27,12],[27,13,27,14],[27,15,27,17],[27,18,27,21],[26,1,26,5],[26,6,26,10],[26,11,26,12],[26,13,26,14],[26,15,26,17],[26,18,26,21],[29,1,29,5],[29,6,29,10],[29,11,29,12],[29,13,29,14],[29,15,29,17],[29,18,29,21],[28,1,28,5],[28,6,28,10],[28,11,28,12],[28,13,28,14],[28,15,28,17],[28,18,28,21],[31,1,31,5],[31,6,31,10],[31,11,31,12],[31,13,31,14],[31,15,31,17],[31,18,31,21],[30,1,30,5],[30,6,30,10],[30,11,30,12],[30,13,30,14],[30,15,30,17],[30,18,30,21],[37,13,38,20],[38,0,38,6],[38,7,38,10],[32,1,32,5],[32,6,32,10],[32,11,32,12],[32,13,32,14],[32,15,32,17],[32,18,32,21],[33,11,33,17],[33,18,33,21],[34,0,34,21],[36,0,36,11],[36,13,36,20],[37,0,37,6],[37,7,37,10],[43,0,43,6],[43,7,43,10],[41,0,41,6],[41,7,41,10],[41,13,41,20],[42,0,42,6],[42,7,42,10],[42,13,42,20],[39,0,39,6],[39,7,39,10],[39,13,39,20],[40,0,40,6],[40,7,40,10],[40,13,40,20]]}
["T.C."]
["ŞEMDİNLİ KAYMAKAMLIĞI"]
["İlçe Milli Eğitim Müdürlüğü"]
["Çalışkanlar Köyü Halil Sever Ortaokulu Müdürlüğü"]
[]
[null,null,null,null,null,null,null,null,null,null,null,null,null,null,null,null,"14.11.2024"]
[null,null,":",{"$f":"İhtiyaç_Listesi!D7","v":0}]
[]
["TEKLİF MEKTUBU"]
[{"$f":"\"        İdaremiz tarafından \" &Veri!G12&\" işine ait aşağıda cinsi, özellikleri ve miktarları yazılı mallar / hizmetler \"&Veri!B40&\" gereğince Doğrudan Temin Usulüyle satın alınacaktır.\"&\" İlgilenmeniz halinde; teklifin KDV hariç olarak sunulması, teklif edilen toplam bedelin rakam ve yazı ile birbirine uygun olarak yazılması,\"&\" Üzerinde kazıntı, silinti ve düzeltme yapılmaması, Teklif Mektubunun Ad, Soyad ve Ticaret Ünvanı yazılmak sureti ile kaşelenmesi ve imzalanması zorunlu olup, bu şartları taşımayan teklifler değerlendirilmeye alınmayacaktır\"&\"Teklif Sahibinin                                            Adı Soyadı/Ticaret Unvanı, Uyruğu                      :Açık Tebligat Adresi                                             :\"&\"Bağlı Olduğu Vergi Dairesi ve Vergi Numarası   :Telefon ve Faks Numarası                                     :E-Mail Adresi (varsa)                                           :\"","v":"        İdaremiz tarafından  işine ait aşağıda cinsi, özellikleri ve miktarları yazılı mallar / hizmetler 4734 Sayılı Kamu İhale Kanunu'nun 22/d Maddesi gereğince Doğrudan Temin Usulüyle satın alınacaktır. İlgilenmeniz halinde; teklifin KDV hariç olarak sunulması, teklif edilen toplam bedelin rakam ve yazı ile birbirine uygun olarak yazılması, Üzerinde kazıntı, silinti ve düzeltme yapılmaması, Teklif Mektubunun Ad, Soyad ve Ticaret Ünvanı yazılmak sureti ile kaşelenmesi ve imzalanması zorunlu olup, bu şartları taşımayan teklifler değerlendirilmeye alınmayacaktırTeklif Sahibinin                                            Adı Soyadı/Ticaret Unvanı, Uyruğu                      :Açık Tebligat Adresi                                             :Bağlı Olduğu Vergi Dairesi ve Vergi Numarası   :Telefon ve Faks Numarası                                     :E-Mail Adresi (varsa)                                           :"}]
[]
[]
["Komisyon Üyesi",null,null,null,null,null,"Komisyon Üyesi",null,null,null,null,null,null,null,null,null,null,"Komisyon Üyesi"]
["Ali TÜRKMENOĞLU",null,null,null,null,null,"Bekir SARIDÖL",null,null,null,null,null,null,null,null,null,null,"Salih KARASU"]
["Müdür Yardımcısı",null,null,null,null,null,"Öğretmen",null,null,null,null,null,null,null,null,null,null,"Öğretmen"]
[]
["SATIN ALINACAK MAL/MALZEME LİSTESİ",null,null,null,null,null,null,null,null,null,null,null,null,null,null,"Teklif Edilen KDV Hariç"]
["S.No","Malzemenin Adı",null,null,null,null,"Özelliği",null,null,null,null,"Miktarı",null,"Ölçeği",null,"Birim Fiyatı",null,null,"Tutarı"]
[{"$f":"IF(NOT(ISBLANK(B19)),COUNTA($B$19:B19),\"\")","v":""}]
[{"$f":"IF(NOT(ISBLANK(B20)),COUNTA($B$19:B20),\"\")","v":""}]
[{"$f":"IF(NOT(ISBLANK(B21)),COUNTA($B$19:B21),\"\")","v":""}]
[{"$f":"IF(NOT(ISBLANK(B22)),COUNTA($B$19:B22),\"\")","v":""}]
[{"$f":"IF(NOT(ISBLANK(B23)),COUNTA($B$19:B23),\"\")","v":""}]
[{"$f":"IF(NOT(ISBLANK(B24)),COUNTA($B$19:B24),\"\")","v":""}]
[{"$f":"IF(NOT(ISBLANK(B25)),COUNTA($B$19:B25),\"\")","v":""}]
[{"$f":"IF(NOT(ISBLANK(B26)),COUNTA($B$19:B26),\"\")","v":""}]
[{"$f":"IF(NOT(ISBLANK(B27)),COUNTA($B$19:B27),\"\")","v":""}]
[{"$f":"IF(NOT(ISBLANK(B28)),COUNTA($B$19:B28),\"\")","v":""}]
[{"$f":"IF(NOT(ISBLANK(B29)),COUNTA($B$19:B29),\"\")","v":""}]
[{"$f":"IF(NOT(ISBLANK(B30)),COUNTA($B$19:B30),\"\")","v":""}]
[{"$f":"IF(NOT(ISBLANK(B31)),COUNTA($B$19:B31),\"\")","v":""}]
[{"$f":"IF(NOT(ISBLANK(B32)),COUNTA($B$19:B32),\"\")","v":""}]
[{"$f":"IF(NOT(ISBLANK(B33)),COUNTA($B$19:B33),\"\")","v":""}]
[null,null,null,null,null,null,null,null,null,null,null,"KDV Hariç Teklif Edilen  Fiyat:"]
["                 Yukarıda belirtilen ve  İdarenizce satın alınacak  olan malların / hizmetlerin  cinsi, özellikleri, miktarı ve diğer şartlarını    okudum. KDV  hariç  toplam Teklif edilen toplam [bedel para birimi belirtilerek rakam ve yazı ile yazılacaktır.] .............................................................................................................., bedelle vermeyi kabul ve taahhüt ediyorum / ediyoruz."]
[]
["DİĞER ŞARTLAR",null,null,null,null,null,null,null,null,null,null,null,null,"Tarih:  …..../….../202"]
["Teslim Süresi",null,null,null,null,null,null,5,null,null,null,null,null,"Adı Soyadı, Ticaret Ünvanı ,İmza,Kaşe veya Açık Adres,Tel. No"]
["Teslim Edilecek Parti Miktarı",null,null,null,null,null,null,3]
["Nakliye ve Sigortanın Kime Ait Olduğu",null,null,null,null,null,null,"Satıcıya",null,null,null,null,null,"…...................................................................."]
["Diğer Özel Şartlar",null,null,null,null,null,null,null,null,null,null,null,null,"…...................................................................."]
["Uyulması Gereken Standartlar",null,null,null,null,null,null,"TSE",null,null,null,null,null,"…...................................................................."]
["Teknik Şartname",null,null,null,null,null,null,null,null,null,null,null,null,"…...................................................................."]
["Diğer Hususlar"]

{"sheet":"Onay","index":5,"n_rows":41,"n_cols":17,"rows_kept":41,"cut":false,"hidden":false,"merged":[[39,0,39,9],[39,10,39,18],[10,0,10,5],[10,6,10,18],[36,0,36,9],[36,10,36,18],[37,0,37,9],[37,10,37,18],[38,0,38,9],[38,10,38,18],[31,0,31,18],[32,0,32,18],[33,0,33,18],[34,0,34,9],[34,10,34,18],[35,0,35,9],[35,10,35,18],[28,16,28,18],[29,8,29,11],[29,12,29,15],[29,16,29,18],[30,8,30,11],[30,12,30,15],[30,16,30,18],[25,0,25,7],[25,8,25,18],[26,0,26,7],[26,8,26,18],[27,0,30,7],[27,8,27,11],[27,12,27,15],[27,16,27,18],[28,8,28,11],[28,12,28,15],[22,0,22,7],[22,8,22,18],[23,0,23,7],[23,8,23,18],[24,0,24,7],[24,8,24,18],[19,0,19,7],[19,8,19,18],[20,0,20,7],[20,8,20,18],[21,0,21,7],[21,8,21,18],[16,0,16,7],[16,8,16,18],[17,0,17,7],[17,8,17,18],[18,0,18,7],[18,8,18,18],[12,0,12,5],[12,6,12,18],[13,0,13,5],[13,6,13,18],[15,0,15,7],[15,8,15,18],[11,0,11,5],[11,6,11,18],[0,0,0,18],[1,0,1,18],[2,0,2,18],[3,0,3,18],[5,0,5,18],[6,0,6,6],[6,7,6,18],[7,0,7,6],[7,7,7,10],[7,11,7,18],[8,0,8,18],[9,0,9,18]]}
["T.C."]
["ŞEMDİNLİ KAYMAKAMLIĞI"]
["İlçe Milli Eğitim Müdürlüğü"]
["Çalışkanlar Köyü Halil Sever Ortaokulu Müdürlüğü"]
[]
["ONAY BELGESİ"]
["Doğrıdan Temini Yapan İdarenin Adı:",null,null,null,null,null,null,"İlçe Milli Eğitim Müdürlüğü"]
["Belge Tarih ve Sayısı:",null,null,null,null,null,null,"17.11.2024",null,null,null,{"$f":"Veri!N6","v":"67484744-934.01.02/148"}]
[{"$f":"Veri!A7","v":"ÇALIŞKANLAR KÖYÜ HALİL SEVER ORTAOKULU MÜDÜRLÜĞÜ MÜDÜRLÜĞÜNE"}]
["                                                                                                 İhale/Harcama Yetkisi"]
["Doğrudan Temin Numarası",null,null,null,null,null,"D2023-11111"]
["İşin Tanımı"]
["İşin Niteliği"]
["İşin Miktarı",null,null,null,null,null,"Ekli belgede gösterilmiştir."]
[]
["Yaklaşık Maliyet (KDV Hariç)(₺)",null,null,null,null,null,null,null,{"$f":"Yaklaşık_Maliyet!AU25","v":0}]
["Kullanılabilir Ödenek Tutarı (KDV  Dahil)( ₺ )"]
["Yatırım Proje Numarası (Varsa)"]
["Bütçe Tertibi"]
["Avans Verilecekse Şartları",null,null,null,null,null,null,null,"Verilmeyecektir."]
["İhale Usulü",null,null,null,null,null,null,null,"4734 Sayılı Kamu İhale Kanunu'nun 22/d Maddesi"]
["İlanın Şekli ve Adedi",null,null,null,null,null,null,null,"Yapılmayacak"]
["Ön Yeterlik/İhale Dökümanı Satış Bedeli",null,null,null,null,null,null,null,0]
["Fiyat Farkı Ödenecekse Dayanağı BKK",null,null,null,null,null,null,null,"Ödenmeyecektir"]
["Sözleşme Düzenlenip Düzenlenmeyeceği",null,null,null,null,null,null,null,"Düzenlenmeyecektir"]
["Şartname Düzenlenip Düzenlenmeyeceği",null,null,null,null,null,null,null,"Düzenlenmeyecektir"]
["Yeterlilik Kıriterleri Aranıp Aranmayacağı",null,null,null,null,null,null,null,"Aranmayacaktır"]
["Doğrudan Temin Usulü ile Mal ve Hizmet satın alınacaksa piyasa fiyat araştırması yapmak üzere görevlendirilecek kişi/ kişiler",null,null,null,null,null,null,null,"Adı Soyadı",null,null,null,"Görevi",null,null,null,"Ünvanı"]
[]
[]
[]
["DİĞER AÇIKLAMALAR"]
[]
["ONAY"]
["          Yukarıda belirtilen mal / malzeme / hizmetin satın alınması için ilgililerin  görevlendirilmeleri hususunu onaylarınıza arz ve teklif ederim.",null,null,null,null,null,null,null,null,null,"UYGUNDUR"]
[null,null,null,null,null,null,null,null,null,null,"İhale Yetkilisi    Adı-Soyadı-Ünvanı"]
["17.11.2024",null,null,null,null,null,null,null,null,null,"17.11.2024"]
[]
[]
[]
["Ek: İdare Tarafından Hazırlanan Yaklaşık Maliyet Hesap Cetveli"]

{"sheet":"Yaklaşık_Maliyet","index":6,"n_rows":30,"n_cols":47,"rows_kept":30,"cut":false,"hidden":false,"merged":[[8,39,8,41],[0,0,0,48],[1,0,1,4],[1,5,1,41],[1,43,6,48],[3,0,3,4],[3,5,3,41],[4,0,4,4],[4,5,4,41],[5,0,8,0],[5,1,7,17],[5,18,5,41],[6,18,6,23],[6,24,6,29],[6,30,6,35],[6,36,6,41],[7,18,7,23],[7,24,7,29],[7,30,7,35],[7,36,7,41],[7,43,8,45],[7,46,8,48],[8,1,8,6],[8,7,8,11],[9,21,9,23],[10,30,10,32],[10,33,10,35],[10,36,10,38],[8,15,8,17],[8,18,8,20],[8,21,8,23],[8,24,8,26],[8,27,8,29],[8,30,8,32],[8,33,8,35],[8,36,8,38],[9,18,9,20],[8,12,8,14],[10,39,10,41],[10,43,10,45],[10,46,10,48],[9,43,9,45],[9,46,9,48],[10,1,10,6],[10,7,10,11],[10,12,10,14],[10,15,10,17],[10,18,10,20],[10,21,10,23],[10,24,10,26],[10,27,10,29],[9,24,9,26],[9,27,9,29],[9,30,9,32],[9,33,9,35],[9,36,9,38],[9,39,9,41],[9,1,9,6],[9,7,9,11],[9,12,9,14],[9,15,9,17],[12,46,12,48],[11,43,11,45],[11,46,11,48],[12,1,12,6],[12,7,12,11],[12,12,12,14],[12,15,12,17],[12,18,12,20],[12,21,12,23],[12,24,12,26],[12,27,12,29],[11,24,11,26],[11,27,11,29],[11,30,11,32],[11,33,11,35],[11,36,11,38],[11,39,11,41],[11,1,11,6],[11,7,11,11],[11,12,11,14],[11,15,11,17],[11,18,11,20],[11,21,11,23],[13,12,13,14],[13,15,13,17],[13,18,13,20],[13,21,13,23],[12,30,12,32],[12,33,12,35],[12,36,12,38],[12,39,12,41],[12,43,12,45],[14,30,14,32],[14,33,14,35],[14,36,14,38],[14,39,14,41],[14,43,14,45],[14,46,14,48],[13,43,13,45],[13,46,13,48],[14,1,14,6],[14,7,14,11],[14,12,14,14],[14,15,14,17],[14,18,14,20],[14,21,14,23],[14,24,14,26],[14,27,14,29],[13,24,13,26],[13,27,13,29],[13,30,13,32],[13,33,13,35],[13,36,13,38],[13,39,13,41],[13,1,13,6],[13,7,13,11],[16,46,16,48],[15,43,15,45],[15,46,15,48],[16,1,16,6],[16,7,16,11],[16,12,16,14],[16,15,16,17],[16,18,16,20],[16,21,16,23],[16,24,16,26],[16,27,16,29],[15,24,15,26],[15,27,15,29],[15,30,15,32],[15,33,15,35],[15,36,15,38],[15,39,15,41],[15,1,15,6],[15,7,15,11],[15,12,15,14],[15,15,15,17],[15,18,15,20],[15,21,15,23],[17,12,17,14],[17,15,17,17],[17,18,17,20],[17,21,17,23],[16,30,16,32],[16,33,16,35],[16,36,16,38],[16,39,16,41],[16,43,16,45],[18,30,18,32],[18,33,18,35],[18,36,18,38],[18,39,18,41],[18,43,18,45],[18,46,18,48],[17,43,17,45],[17,46,17,48],[18,1,18,6],[18,7,18,11],[18,12,18,14],[18,15,18,17],[18,18,18,20],[18,21,18,23],[18,24,18,26],[18,27,18,29],[17,24,17,26],[17,27,17,29],[17,30,17,32],[17,33,17,35],[17,36,17,38],[17,39,17,41],[17,1,17,6],[17,7,17,11],[20,46,20,48],[19,43,19,45],[19,46,19,48],[20,1,20,6],[20,7,20,11],[20,12,20,14],[20,15,20,17],[20,18,20,20],[20,21,20,23],[20,24,20,26],[20,27,20,29],[19,24,19,26],[19,27,19,29],[19,30,19,32],[19,33,19,35],[19,36,19,38],[19,39,19,41],[19,1,19,6],[19,7,19,11],[19,12,19,14],[19,15,19,17],[19,18,19,20],[19,21,19,23],[21,12,21,14],[21,15,21,17],[21,18,21,20],[21,21,21,23],[20,30,20,32],[20,33,20,35],[20,36,20,38],[20,39,20,41],[20,43,20,45],[22,30,22,32],[22,33,22,35],[22,36,22,38],[22,39,22,41],[22,43,22,45],[22,46,22,48],[21,43,21,45],[21,46,21,48],[22,1,22,6],[22,7,22,11],[22,12,22,14],[22,15,22,17],[22,18,22,20],[22,21,22,23],[22,24,22,26],[22,27,22,29],[21,24,21,26],[21,27,21,29],[21,30,21,32],[21,33,21,35],[21,36,21,38],[21,39,21,41],[21,1,21,6],[21,7,21,11],[24,33,24,35],[24,36,24,38],[23,24,23,26],[23,27,23,29],[23,30,23,32],[23,33,23,35],[23,36,23,38],[23,39,23,41],[23,1,23,6],[23,7,23,11],[23,12,23,14],[23,15,23,17],[23,18,23,20],[23,21,23,23],[2,9,2,41],[2,0,2,8],[32,0,32,15],[32,16,32,31],[32,32,32,48],[33,0,33,15],[33,16,33,31],[33,32,33,48],[24,39,24,45],[24,46,24,48],[26,0,26,48],[27,0,27,48],[29,0,29,48],[31,0,31,15],[31,16,31,31],[31,32,31,48],[23,43,23,45],[23,46,23,48],[24,0,24,17],[24,18,24,20],[24,21,24,23],[24,24,24,26],[24,27,24,29],[24,30,24,32]]}
["YAKLAŞIK MALİYET CETVELİ"]
["İdarenin Adı:",null,null,null,null,{"$f":"Veri!A6","v":"ÇALIŞKANLAR KÖYÜ HALİL SEVER ORTAOKULU MÜDÜRLÜĞÜ MÜDÜRLÜĞÜ"},null,null,null,null,null,null,null,null,null,null,null,null,null,null,null,null,null,null,null,null,null,null,null,null,null,null,null,null,null,null,null,null,null,null,null,null,null,"İdarece Tespit ve Yakdir Edilen Yaklaşık Maliyet (KDV Hariç)"]
["Doğrudan Temin Numarası:",null,null,null,null,null,null,null,null,"D2023-11111"]
["İşin  Konusu:"]
["Düzenleme Tarihi:",null,null,null,null,"14.11.2024"]
["Sıra NO","Yaklaşık Maliyeti Hesaplanacak Mal ve Hizmetin",null,null,null,null,null,null,null,null,null,null,null,null,null,null,null,null,"Kişiler/ Kurumlar/ Firmalar ve Yaklaşık Maliyet İçin Bildirilen Fiyatlar. (KDV Hariç)"]
[null,null,null,null,null,null,null,null,null,null,null,null,null,null,null,null,null,null,null,null,null,null,null,null,null,null,null,null,null,null,null,null,null,null,null,null,4]
[null,null,null,null,null,null,null,null,null,null,null,null,null,null,null,null,null,null,null,null,null,null,null,null,null,null,null,null,null,null,null,null,null,null,null,null,null,null,null,null,null,null,null,"Birim   Yaklaşık Maliyet Fiyatı",null,null,"Toplam Yaklaşık Maliyet Fiyatı"]
[null,null,null,null,null,null,null,null,null,null,null,null,null,null,null,null,null,null,null,null,null,"Toplam Fiyat",null,null,null,null,null,"Toplam Fiyat",null,null,null,null,null,"Toplam Fiyat",null,null,"Birim Fiyatı",null,null,"Toplam Fiyat"]
[{"$f":"IF(NOT(ISBLANK(B10)),COUNTA($B$10:B10),\"\")","v":""},null,null,null,null,null,null,null,null,null,null,null,null,null,null,null,null,null,null,null,null,{"$f":"IF(B10=\"\",\"\",M10*S10)","v":""},null,null,null,null,null,{"$f":"IF(B10=\"\",\"\",M10*Y10)","v":""},null,null,null,null,null,{"$f":"IF(B10=\"\",\"\",M10*AE10)","v":""},null,null,null,null,null,null,null,null,null,{"$f":"IF(B10=\"\",\"\",(S10+Y10+AE10)/3)","v":""},null,null,{"$f":"IF(B10=\"\",\"\",M10*AR10)","v":""}]
[{"$f":"IF(NOT(ISBLANK(B11)),COUNTA($B$10:B11),\"\")","v":""},null,null,null,null,null,null,null,null,null,null,null,null,null,null,null,null,null,null,null,null,{"$f":"IF(B11=\"\",\"\",M11*S11)","v":""},null,null,null,null,null,{"$f":"IF(B11=\"\",\"\",M11*Y11)","v":""},null,null,null,null,null,{"$f":"IF(B11=\"\",\"\",M11*AE11)","v":""},null,null,null,null,null,null,null,null,null,{"$f":"IF(B11=\"\",\"\",(S11+Y11+AE11)/3)","v":""},null,null,""]
[{"$f":"IF(NOT(ISBLANK(B12)),COUNTA($B$10:B12),\"\")","v":""},null,null,null,null,null,null,null,null,null,null,null,null,null,null,null,null,null,null,null,null,"",null,null,null,null,null,"",null,null,null,null,null,"",null,null,null,null,null,null,null,null,null,{"$f":"IF(B12=\"\",\"\",(S12+Y12+AE12)/3)","v":""},null,null,""]
[{"$f":"IF(NOT(ISBLANK(B13)),COUNTA($B$10:B13),\"\")","v":""},null,null,null,null,null,null,null,null,null,null,null,null,null,null,null,null,null,null,null,null,"",null,null,null,null,null,"",null,null,null,null,null,"",null,null,null,null,null,null,null,null,null,"",null,null,""]
[{"$f":"IF(NOT(ISBLANK(B14)),COUNTA($B$10:B14),\"\")","v":""},null,null,null,null,null,null,null,null,null,null,null,null,null,null,null,null,null,null,null,null,"",null,null,null,null,null,"",null,null,null,null,null,"",null,null,null,null,null,null,null,null,null,"",null,null,""]
[{"$f":"IF(NOT(ISBLANK(B15)),COUNTA($B$10:B15),\"\")","v":""},null,null,null,null,null,null,null,null,null,null,null,null,null,null,null,null,null,null,null,null,"",null,null,null,null,null,"",null,null,null,null,null,"",null,null,null,null,null,null,null,null,null,"",null,null,""]
[{"$f":"IF(NOT(ISBLANK(B16)),COUNTA($B$10:B16),\"\")","v":""},null,null,null,null,null,null,null,null,null,null,null,null,null,null,null,null,null,null,null,null,"",null,null,null,null,null,"",null,null,null,null,null,"",null,null,null,null,null,null,null,null,null,"",null,null,""]
[{"$f":"IF(NOT(ISBLANK(B17)),COUNTA($B$10:B17),\"\")","v":""},null,null,null,null,null,null,null,null,null,null,null,null,null,null,null,null,null,null,null,null,"",null,null,null,null,null,"",null,null,null,null,null,"",null,null,null,null,null,null,null,null,null,"",null,null,""]
[{"$f":"IF(NOT(ISBLANK(B18)),COUNTA($B$10:B18),\"\")","v":""},null,null,null,null,null,null,null,null,null,null,null,null,null,null,null,null,null,null,null,null,"",null,null,null,null,null,"",null,null,null,null,null,"",null,null,null,null,null,null,null,null,null,{"$f":"(S18+Y18+AE18)/3","v":0},null,null,{"$f":"M18*AR18","v":0}]
[{"$f":"IF(NOT(ISBLANK(B19)),COUNTA($B$10:B19),\"\")","v":""},null,null,null,null,null,null,null,null,null,null,null,null,null,null,null,null,null,null,null,null,"",null,null,null,null,null,"",null,null,null,null,null,"",null,null,null,null,null,null,null,null,null,{"$f":"(S19+Y19+AE19)/3","v":0},null,null,0]
[{"$f":"IF(NOT(ISBLANK(B20)),COUNTA($B$10:B20),\"\")","v":""},null,null,null,null,null,null,null,null,null,null,null,null,null,null,null,null,null,null,null,null,"",null,null,null,null,null,"",null,null,null,null,null,"",null,null,null,null,null,null,null,null,null,{"$f":"(S20+Y20+AE20)/4","v":0},null,null,0]
[{"$f":"IF(NOT(ISBLANK(B21)),COUNTA($B$10:B21),\"\")","v":""},null,null,null,null,null,null,null,null,null,null,null,null,null,null,null,null,null,null,null,null,"",null,null,null,null,null,"",null,null,null,null,null,"",null,null,null,null,null,null,null,null,null,{"$f":"(S21+Y21+AE21)/4","v":0},null,null,0]
[{"$f":"IF(NOT(ISBLANK(B22)),COUNTA($B$10:B22),\"\")","v":""},null,null,null,null,null,null,null,null,null,null,null,null,null,null,null,null,null,null,null,null,"",null,null,null,null,null,"",null,null,null,null,null,"",null,null,null,null,null,null,null,null,null,{"$f":"(S22+Y22+AE22)/4","v":0},null,null,0]
[{"$f":"IF(NOT(ISBLANK(B23)),COUNTA($B$10:B23),\"\")","v":""},null,null,null,null,null,null,null,null,null,null,null,null,null,null,null,null,null,null,null,null,"",null,null,null,null,null,"",null,null,null,null,null,"",null,null,null,null,null,null,null,null,null,{"$f":"(S23+Y23+AE23)/4","v":0},null,null,0]
[{"$f":"IF(NOT(ISBLANK(B24)),COUNTA($B$10:B24),\"\")","v":""},null,null,null,null,null,null,null,null,null,null,null,null,null,null,null,null,null,null,null,null,"",null,null,null,null,null,"",null,null,null,null,null,"",null,null,null,null,null,null,null,null,null,{"$f":"(S24+Y24+AE24)/4","v":0},null,null,0]
["Kişiler/ Kurumlar/ Firmalar ve Yaklaşık Maliyet İçin Bildirilen Fiyatlar. (KDV Hariç)",null,null,null,null,null,null,null,null,null,null,null,null,null,null,null,null,null,"TOPLAM:",null,null,{"$f":"SUM(V10:X24)","v":0},null,null,"TOPLAM:",null,null,{"$f":"SUM(AB10:AD24)","v":0},null,null,"TOPLAM:",null,null,{"$f":"SUM(AH10:AJ24)","v":0},null,null,null,null,null,"Yaklaşık Maliyet Tutarı:",null,null,null,null,null,null,{"$f":"SUM(AU10:AW24)","v":0}]
[]
["           İdaremizcen ihtiyaç duyulan ve satın alınması düşünülen aşağıda cinsi, özellikleri ve miktarları yazılı malların /  hizmetlerin 4734 Sayılı Kamu İhale Kanunu'nun 9'uncu Maddesi gereğince yaklaşık maliyetinin tesbitine esas olmak  üzere; ilgili kişi kurum ve firmalardan yaklaşık maliyetinin tesbitine esas olmak üzere,  her türlü fiyat araştırması yapılmıştır. Araştırma sonuçları yukarıda tabloda gösterilmiştir."]
[{"$f":"\"Yukarıda  açıklandığı  üzere, ihaleye çıkılması  düşünülen  mal  / hizmetlerin  fiyat  araştırması neticesinde;   4734  Sayılı  İhale  Kanunu'nun  9.  Maddesi gereğince yaklaşık  maliyetinin  KDV  hariç \"&ROUND(AU25,2)&\" TL  takdir ve tesbit edilerek iş bu Hesap Cetveli tarafımca / tarafımızca düzenlenerek imza altına alınmıştır. \"","v":"Yukarıda  açıklandığı  üzere, ihaleye çıkılması  düşünülen  mal  / hizmetlerin  fiyat  araştırması neticesinde;   4734  Sayılı  İhale  Kanunu'nun  9.  Maddesi gereğince yaklaşık  maliyetinin  KDV  hariç 0 TL  takdir ve tesbit edilerek iş bu Hesap Cetveli tarafımca / tarafımızca düzenlenerek imza altına alınmıştır. "}]
[]
["Y A K L A Ş I K   M A L İ Y E T İ   Y A P A N   G Ö R E V L İ  /  G Ö R E V L İ L ER"]

{"sheet":"Piyasa_Arş_Tut","index":7,"n_rows":31,"n_cols":42,"rows_kept":31,"cut":false,"hidden":false,"merged":[[34,0,34,14],[34,15,34,29],[34,30,34,43],[2,0,2,13],[2,15,2,43],[30,0,30,43],[32,0,32,14],[32,15,32,29],[32,30,32,43],[33,0,33,14],[33,15,33,29],[33,30,33,43],[27,0,27,16],[27,17,27,25],[27,26,27,34],[27,35,27,43],[28,0,28,43],[29,34,29,43],[24,38,24,40],[24,41,24,43],[25,0,26,16],[25,17,25,43],[26,17,26,25],[26,26,26,34],[26,35,26,43],[23,35,23,37],[23,38,23,40],[23,41,23,43],[24,0,24,19],[24,20,24,22],[24,23,24,25],[24,26,24,28],[24,29,24,31],[24,32,24,34],[24,35,24,37],[22,1,22,6],[22,7,22,12],[22,13,22,16],[22,17,22,19],[22,20,22,22],[22,41,22,43],[23,1,23,6],[23,7,23,12],[23,13,23,16],[23,17,23,19],[23,20,23,22],[23,23,23,25],[23,26,23,28],[23,29,23,31],[23,32,23,34],[22,23,22,25],[22,26,22,28],[22,29,22,31],[22,32,22,34],[22,35,22,37],[22,38,22,40],[20,35,20,37],[20,38,20,40],[20,41,20,43],[21,1,21,6],[21,7,21,12],[21,13,21,16],[21,17,21,19],[21,20,21,22],[21,23,21,25],[21,26,21,28],[21,29,21,31],[21,32,21,34],[21,35,21,37],[21,38,21,40],[21,41,21,43],[20,1,20,6],[20,7,20,12],[20,13,20,16],[20,17,20,19],[20,20,20,22],[20,23,20,25],[20,26,20,28],[20,29,20,31],[20,32,20,34],[18,35,18,37],[18,38,18,40],[18,41,18,43],[19,1,19,6],[19,7,19,12],[19,13,19,16],[19,17,19,19],[19,20,19,22],[19,41,19,43],[19,23,19,25],[19,26,19,28],[19,29,19,31],[19,32,19,34],[19,35,19,37],[19,38,19,40],[18,1,18,6],[18,7,18,12],[18,13,18,16],[18,17,18,19],[18,20,18,22],[18,23,18,25],[18,26,18,28],[18,29,18,31],[18,32,18,34],[16,1,16,6],[16,7,16,12],[16,13,16,16],[16,17,16,19],[16,20,16,22],[16,41,16,43],[17,1,17,6],[17,7,17,12],[17,13,17,16],[17,17,17,19],[17,20,17,22],[17,23,17,25],[17,26,17,28],[17,29,17,31],[17,32,17,34],[16,23,16,25],[16,26,16,28],[16,29,16,31],[16,32,16,34],[16,35,16,37],[16,38,16,40],[17,35,17,37],[17,38,17,40],[17,41,17,43],[14,35,14,37],[14,38,14,40],[14,41,14,43],[15,1,15,6],[15,7,15,12],[15,13,15,16],[15,17,15,19],[15,20,15,22],[15,23,15,25],[15,26,15,28],[15,29,15,31],[15,32,15,34],[15,35,15,37],[15,38,15,40],[15,41,15,43],[14,1,14,6],[14,7,14,12],[14,13,14,16],[14,17,14,19],[14,20,14,22],[14,23,14,25],[14,26,14,28],[14,29,14,31],[14,32,14,34],[12,35,12,37],[12,38,12,40],[12,41,12,43],[13,1,13,6],[13,7,13,12],[13,13,13,16],[13,17,13,19],[13,20,13,22],[13,41,13,43],[13,23,13,25],[13,26,13,28],[13,29,13,31],[13,32,13,34],[13,35,13,37],[13,38,13,40],[12,1,12,6],[12,7,12,12],[12,13,12,16],[12,17,12,19],[12,20,12,22],[12,23,12,25],[12,26,12,28],[12,29,12,31],[12,32,12,34],[10,1,10,6],[10,7,10,12],[10,13,10,16],[10,17,10,19],[10,20,10,22],[10,41,10,43],[11,1,11,6],[11,7,11,12],[11,13,11,16],[11,17,11,19],[11,20,11,22],[11,23,11,25],[11,26,11,28],[11,29,11,31],[11,32,11,34],[10,23,10,25],[10,26,10,28],[10,29,10,31],[10,32,10,34],[10,35,10,37],[10,38,10,40],[11,35,11,37],[11,38,11,40],[11,41,11,43],[8,23,8,25],[8,26,8,28],[8,29,8,31],[8,32,8,34],[8,35,8,37],[8,38,8,40],[8,41,8,43],[9,1,9,6],[9,7,9,12],[9,13,9,16],[9,17,9,19],[9,20,9,22],[9,23,9,25],[9,26,9,28],[9,29,9,31],[9,32,9,34],[9,35,9,37],[9,38,9,40],[9,41,9,43],[0,0,0,43],[1,0,1,13],[1,15,1,43],[3,0,3,13],[3,15,3,43],[4,0,4,13],[4,15,4,21],[4,22,4,43],[5,0,8,0],[5,1,7,19],[5,20,5,43],[6,20,6,25],[6,26,6,31],[6,32,6,37],[6,38,6,43],[7,20,7,25],[7,26,7,31],[7,32,7,37],[7,38,7,43],[8,1,8,6],[8,7,8,12],[8,13,8,16],[8,17,8,19],[8,20,8,22]]}
["PİYASA FİYAT ARAŞTIRMA TUTANAĞI"]
["İdarenin Adı",null,null,null,null,null,null,null,null,null,null,null,null,null,":",{"$f":"Veri!A6","v":"ÇALIŞKANLAR KÖYÜ HALİL SEVER ORTAOKULU MÜDÜRLÜĞÜ MÜDÜRLÜĞÜ"}]
["Doğrudan Temin Numarası",null,null,null,null,null,null,null,null,null,null,null,null,null,":"]
["Yapılan İş/Mal/Hizmetin Adı, Niteliği",null,null,null,null,null,null,null,null,null,null,null,null,null,":"]
["Alım ve Yetkilendirilen Görevlilere İlişkin Onay Belgesi/Görevlendirme Onayı Tarih ve No.su",null,null,null,null,null,null,null,null,null,null,null,null,null,":",{"$f":"Onay!H8","v":"17.11.2024"},null,null,null,null,null,null,{"$f":"Onay!L8","v":"67484744-934.01.02/148"}]
["Sıra No",{"$f":"Veri!A10","v":""},null,null,null,null,null,null,null,null,null,null,null,null,null,null,null,null,null,null,"Kişiler/Firmalar ve Fiyat Teklifleri(KDV Hariç)"]
[null,null,null,null,null,null,null,null,null,null,null,null,null,null,null,null,null,null,null,null,null,null,null,null,null,null,null,null,null,null,null,null,null,null,null,null,null,null,4]
[]
[null,null,null,null,null,null,null,null,null,null,null,null,null,null,null,null,null,null,null,null,null,null,null,"Toplam Fiyat",null,null,null,null,null,"Toplam Fiyat",null,null,null,null,null,"Toplam Fiyat",null,null,"Birim Fiyatı",null,null,"Toplam Fiyat"]
[{"$f":"IF(NOT(ISBLANK(B10)),COUNTA($B$10:B10),\"\")","v":""},null,null,null,null,null,null,null,null,null,null,null,null,null,null,null,null,null,null,null,null,null,null,{"$f":"IF(B10=\"\",\"\",N10*U10)","v":""},null,null,null,null,null,{"$f":"IF(B10=\"\",\"\",N10*AA10)","v":""},null,null,null,null,null,{"$f":"IF(B10=\"\",\"\",N10*AG10)","v":""}]
[{"$f":"IF(NOT(ISBLANK(B11)),COUNTA($B$10:B11),\"\")","v":""},null,null,null,null,null,null,null,null,null,null,null,null,null,null,null,null,null,null,null,null,null,null,{"$f":"IF(B11=\"\",\"\",N11*U11)","v":""},null,null,null,null,null,{"$f":"IF(B11=\"\",\"\",N11*AA11)","v":""},null,null,null,null,null,{"$f":"IF(B11=\"\",\"\",N11*AG11)","v":""}]
[{"$f":"IF(NOT(ISBLANK(B12)),COUNTA($B$10:B12),\"\")","v":""},null,null,null,null,null,null,null,null,null,null,null,null,null,null,null,null,null,null,null,null,null,null,{"$f":"IF(B12=\"\",\"\",N12*U12)","v":""},null,null,null,null,null,"",null,null,null,null,null,""]
[{"$f":"IF(NOT(ISBLANK(B13)),COUNTA($B$10:B13),\"\")","v":""},null,null,null,null,null,null,null,null,null,null,null,null,null,null,null,null,null,null,null,null,null,null,"",null,null,null,null,null,"",null,null,null,null,null,""]
[{"$f":"IF(NOT(ISBLANK(B14)),COUNTA($B$10:B14),\"\")","v":""},null,null,null,null,null,null,null,null,null,null,null,null,null,null,null,null,null,null,null,null,null,null,"",null,null,null,null,null,"",null,null,null,null,null,""]
[{"$f":"IF(NOT(ISBLANK(B15)),COUNTA($B$10:B15),\"\")","v":""},null,null,null,null,null,null,null,null,null,null,null,null,null,null,null,null,null,null,null,null,null,null,"",null,null,null,null,null,"",null,null,null,null,null,""]
[{"$f":"IF(NOT(ISBLANK(B16)),COUNTA($B$10:B16),\"\")","v":""},null,null,null,null,null,null,null,null,null,null,null,null,null,null,null,null,null,null,null,null,null,null,"",null,null,null,null,null,"",null,null,null,null,null,""]
[{"$f":"IF(NOT(ISBLANK(B17)),COUNTA($B$10:B17),\"\")","v":""},null,null,null,null,null,null,null,null,null,null,null,null,null,null,null,null,null,null,null,null,null,null,"",null,null,null,null,null,"",null,null,null,null,null,""]
[{"$f":"IF(NOT(ISBLANK(B18)),COUNTA($B$10:B18),\"\")","v":""},null,null,null,null,null,null,null,null,null,null,null,null,null,null,null,null,null,null,null,null,null,null,"",null,null,null,null,null,"",null,null,null,null,null,""]
[{"$f":"IF(NOT(ISBLANK(B19)),COUNTA($B$10:B19),\"\")","v":""},null,null,null,null,null,null,null,null,null,null,null,null,null,null,null,null,null,null,null,null,null,null,"",null,null,null,null,null,"",null,null,null,null,null,""]
[{"$f":"IF(NOT(ISBLANK(B20)),COUNTA($B$10:B20),\"\")","v":""},null,null,null,null,null,null,null,null,null,null,null,null,null,null,null,null,null,null,null,null,null,null,"",null,null,null,null,null,"",null,null,null,null,null,""]
[{"$f":"IF(NOT(ISBLANK(B21)),COUNTA($B$10:B21),\"\")","v":""},null,null,null,null,null,null,null,null,null,null,null,null,null,null,null,null,null,null,null,null,null,null,"",null,null,null,null,null,"",null,null,null,null,null,""]
[{"$f":"IF(NOT(ISBLANK(B22)),COUNTA($B$10:B22),\"\")","v":""},null,null,null,null,null,null,null,null,null,null,null,null,null,null,null,null,null,null,null,null,null,null,"",null,null,null,null,null,"",null,null,null,null,null,""]
[{"$f":"IF(NOT(ISBLANK(B23)),COUNTA($B$10:B23),\"\")","v":""},null,null,null,null,null,null,null,null,null,null,null,null,null,null,null,null,null,null,null,null,null,null,"",null,null,null,null,null,"",null,null,null,null,null,""]
[{"$f":"IF(NOT(ISBLANK(B24)),COUNTA($B$10:B24),\"\")","v":""},null,null,null,null,null,null,null,null,null,null,null,null,null,null,null,null,null,null,null,null,null,null,"",null,null,null,null,null,"",null,null,null,null,null,""]
["Kişiler/Firmalar ve Fiyat Teklifleri(KDV Hariç)",null,null,null,null,null,null,null,null,null,null,null,null,null,null,null,null,null,null,null,"TOPLAM TEKLİF",null,null,{"$f":"SUM(X10:Z24)","v":0},null,null,"TOPLAM TEKLİF",null,null,{"$f":"SUM(AD10:AF24)","v":0},null,null,"TOPLAM TEKLİF",null,null,{"$f":"SUM(AJ10:AL24)","v":0},null,null,"TOPLAM TEKLİF"]
[{"$f":"Veri!A10","v":""},null,null,null,null,null,null,null,null,null,null,null,null,null,null,null,null,"Teklifi Uygun Görülen Kişi/Firm"]
[null,null,null,null,null,null,null,null,null,null,null,null,null,null,null,null,null,"Adı",null,null,null,null,null,null,null,null,"Adresi",null,null,null,null,null,null,null,null,"Teklif Ettiği Fiyat(KDV Hariç)"]
["Tümünün Bu Kişi/Firmadan Alımı Uygun Görülmüştür",null,null,null,null,null,null,null,null,null,null,null,null,null,null,null,null,{"$f":"Veri!C14","v":0},null,null,null,null,null,null,null,null,"Karşıyaka mah.Efkar Sok.  no:21",null,null,null,null,null,null,null,null,{"$f":"Veri!B14","v":0}]
["      4734 Sayılı Kamu İhale Kanunu'nun 22 nci Maddesi uyarınca Doğrudan Temin Usulüyle yapılacak alımlara ilişkin yapılan piyasa araştırmasında firmalarca/kişilerce teklif edilen fiyatlar tarafımca/tarafımızca değerlendirilerek yukarıda adı ve adresleri belirtilen kişi/firma/firmalardan alım yapılması uygun görülmüştür."]
[null,null,null,null,null,null,null,null,null,null,null,null,null,null,null,null,null,null,null,null,null,null,null,null,null,null,null,null,null,null,null,null,null,null,"14.11.2024"]
["P İ Y A S A   F İ Y A T   A R A Ş T I R M A S I   G Ö R E V L İ S İ  /  G Ö R E V L İ L E R İ"]

{"sheet":"Muayene_Kabul","index":8,"n_rows":30,"n_cols":10,"rows_kept":30,"cut":false,"hidden":false,"merged":[[8,0,8,9],[5,0,5,1],[5,3,5,5],[29,0,29,3],[29,4,29,7],[29,8,29,9],[30,8,30,9],[31,8,31,9],[0,0,0,9],[1,0,1,9],[2,0,2,9],[28,0,28,9],[9,1,9,3],[4,3,4,9],[6,3,6,4],[12,1,12,3],[27,0,27,9],[4,0,4,1],[6,0,6,1],[10,1,10,3],[11,1,11,3],[3,0,3,9],[30,0,30,3],[31,0,31,3],[32,0,32,3],[30,4,30,7],[31,4,31,7],[32,4,32,7],[0,10,1048575,16383],[25,4,25,6],[25,7,25,8],[13,1,13,3],[20,1,20,3],[21,1,21,3],[22,1,22,3],[23,1,23,3],[24,1,24,3],[14,1,14,3],[15,1,15,3],[16,1,16,3],[17,1,17,3],[18,1,18,3],[19,1,19,3],[32,8,32,9]]}
["T.C."]
["ŞEMDİNLİ KAYMAKAMLIĞI"]
["İlçe Milli Eğitim Müdürlüğü"]
["Çalışkanlar Köyü Halil Sever Ortaokulu Müdürlüğü"]
["İdarenin Adı",null,":",{"$f":"Veri!A7","v":"ÇALIŞKANLAR KÖYÜ HALİL SEVER ORTAOKULU MÜDÜRLÜĞÜ MÜDÜRLÜĞÜNE"}]
["İşin Adı/Niteliği",null,":"]
["Karar Tarihi",null,":","17.11.2024"]
["Karar No",null,":","2024/3"]
["MUAYENE VE KABUL KOMİSYONU KARARI"]
["SIRA NO","MAL/MALZEME ADI",null,null,"MİKTARI","ÖLÇEĞİ","BİRİM FİYATI","TOPLAM FİYAT(KDV HARİÇ)","KABUL EDİLEN MİKTAR","KALAN"]
[{"$f":"IF(NOT(ISBLANK(B11)),COUNTA($B$11:B11),\"\")","v":""},null,null,null,null,null,{"$f":"IF(B11=\"\",\"\",Veri!D14)","v":""},{"$f":"IF(B11=\"\",\"\",E11*G11)","v":""},null,{"$f":"IF(B11=\"\",\"\",E11-I11)","v":""}]
[{"$f":"IF(NOT(ISBLANK(B12)),COUNTA($B$11:B12),\"\")","v":""},null,null,null,null,null,{"$f":"IF(B12=\"\",\"\",Veri!D15)","v":""},{"$f":"IF(B12=\"\",\"\",E12*G12)","v":""},null,{"$f":"IF(B12=\"\",\"\",E12-I12)","v":""}]
[{"$f":"IF(NOT(ISBLANK(B13)),COUNTA($B$11:B13),\"\")","v":""},null,null,null,null,null,{"$f":"IF(B13=\"\",\"\",Veri!D16)","v":""},{"$f":"IF(B13=\"\",\"\",E13*G13)","v":""},null,""]
[{"$f":"IF(NOT(ISBLANK(B14)),COUNTA($B$11:B14),\"\")","v":""},null,null,null,null,null,{"$f":"IF(B14=\"\",\"\",Veri!D17)","v":""},"",null,""]
[{"$f":"IF(NOT(ISBLANK(B15)),COUNTA($B$11:B15),\"\")","v":""},null,null,null,null,null,{"$f":"IF(B15=\"\",\"\",Veri!D18)","v":""},"",null,""]
[{"$f":"IF(NOT(ISBLANK(B16)),COUNTA($B$11:B16),\"\")","v":""},null,null,null,null,null,{"$f":"IF(B16=\"\",\"\",Veri!D19)","v":""},"",null,""]
[{"$f":"IF(NOT(ISBLANK(B17)),COUNTA($B$11:B17),\"\")","v":""},null,null,null,null,null,{"$f":"IF(B17=\"\",\"\",Veri!D20)","v":""},"",null,""]
[{"$f":"IF(NOT(ISBLANK(B18)),COUNTA($B$11:B18),\"\")","v":""},null,null,null,null,null,{"$f":"IF(B18=\"\",\"\",Veri!D21)","v":""},"",null,""]
[{"$f":"IF(NOT(ISBLANK(B19)),COUNTA($B$11:B19),\"\")","v":""},null,null,null,null,null,{"$f":"Veri!D22","v":0},{"$f":"E19*G19","v":0},null,""]
[{"$f":"IF(NOT(ISBLANK(B20)),COUNTA($B$11:B20),\"\")","v":""},null,null,null,null,null,{"$f":"Veri!D23","v":0},0,null,""]
[{"$f":"IF(NOT(ISBLANK(B21)),COUNTA($B$11:B21),\"\")","v":""},null,null,null,null,null,{"$f":"Veri!D24","v":0},0,null,""]
[{"$f":"IF(NOT(ISBLANK(B22)),COUNTA($B$11:B22),\"\")","v":""},null,null,null,null,null,{"$f":"Veri!D25","v":0},0,null,""]
[{"$f":"IF(NOT(ISBLANK(B23)),COUNTA($B$11:B23),\"\")","v":""},null,null,null,null,null,{"$f":"Veri!D26","v":0},0,null,""]
[{"$f":"IF(NOT(ISBLANK(B24)),COUNTA($B$11:B24),\"\")","v":""},null,null,null,null,null,{"$f":"Veri!D27","v":0},0,null,""]
[{"$f":"IF(NOT(ISBLANK(B25)),COUNTA($B$11:B25),\"\")","v":""},null,null,null,null,null,{"$f":"Veri!D28","v":0},0,null,""]
[null,null,null,null,"Toplam (KDV Hariç)",null,null,{"$f":"SUM(H11:H25)","v":0}]
[]
[{"$f":"\"              İhale yetkilisince görevlendirilmemiz nedeniyle \"&Veri!A9&\"na ait yukarıda cinsi, miktarı ve tutarı belirtilen emtialar sözleşme esaslarına göre kontrolü yapılmış, alınmasında herhangi bir sakınca bulunmadığı tarafımızdan tesbit edilerek teslim alınmış ve iş bu karar tanzim ve imza edilmiştir.\"","v":"              İhale yetkilisince görevlendirilmemiz nedeniyle na ait yukarıda cinsi, miktarı ve tutarı belirtilen emtialar sözleşme esaslarına göre kontrolü yapılmış, alınmasında herhangi bir sakınca bulunmadığı tarafımızdan tesbit edilerek teslim alınmış ve iş bu karar tanzim ve imza edilmiştir."}]
["MUAYENE KABUL KOMİSYONU"]
["17.11.2024",null,null,null,"17.11.2024",null,null,null,"17.11.2024"]

{"sheet":"Harcama","index":9,"n_rows":35,"n_cols":14,"rows_kept":35,"cut":false,"hidden":false,"merged":[[24,2,24,12],[1,2,1,13],[5,1,5,13],[7,1,16,1],[7,2,7,5],[7,6,7,13],[8,2,8,5],[8,6,8,13],[9,2,9,5],[9,6,9,13],[10,2,10,5],[3,11,3,13],[3,3,3,9],[33,1,33,7],[34,1,35,13],[14,6,14,13],[15,6,15,9],[15,10,15,13],[27,1,28,7],[27,8,27,13],[28,8,28,13],[29,1,29,7],[29,8,29,13],[30,1,30,7],[14,2,14,5],[15,2,15,5],[16,2,16,5],[16,6,16,13],[18,2,18,4],[31,8,31,13],[32,8,32,13],[31,1,31,7],[32,1,32,7],[10,6,10,13],[11,2,11,5],[11,6,11,13],[12,2,12,5],[12,6,12,13],[13,2,13,5],[13,6,13,13],[19,2,19,12],[20,2,20,12],[21,2,21,12],[22,2,22,12],[23,2,23,12]]}
[null,null,null,null,null,null,null,null,null,null,null,null,null,"Ek-1"]
[null,null,"HARCAMA TALİMATI"]
[]
[null,null,"Sayı:","123456789-934.01.99/",null,null,null,null,null,null,"Tarih:","01.01.2023"]
[null,null,"Harcama talebinde bulunan birim: "]
[null,{"$f":"Veri!A6","v":"ÇALIŞKANLAR KÖYÜ HALİL SEVER ORTAOKULU MÜDÜRLÜĞÜ MÜDÜRLÜĞÜ"}]
[]
[null,"   Y  A  P  I   L   A  C  A  K      H   A  R  C  A  M  A  N  I  N","Gerekçesi ve Hukuki Dayanağı",null,null,null," 4734 Sayılı Kamu İhale Kanunu' nun 22/d Maddesi"]
[null,null,"Konusu/nev'i / Niteliği"]
[null,null,"Miktarı",null,null,null,{"$f":"Veri!A34&\" Kalem\"","v":"0 Kalem"}]
[null,null,"Gerçekleştirme Süresi",null,null,null,{"$f":"Veri!A38&\" Gün\"","v":"3 Gün"}]
[null,null,"Gerçekleştirme Usulü",null,null,null," 4734 Sayılı Kamu İhale Kanunu' nun 22/d Maddesi"]
[null,null,"Yaklaşık Maliyet",null,null,null,{"$f":"Yaklaşık_Maliyet!AU25","v":0}]
[null,null,"Kullanılabilir Ödenek Tutarı"]
[null,null,"Ödeneğin Bütçe Tertibi"]
[null,null,"Gerçekleştirme Görevlileri"]
[]
[]
[null,null,"AÇIKLAMALAR:"]
[]
[]
[]
[]
[]
[]
[]
[]
[null,"Yukarıda belirtilen hizmetin/ işin alımının\ngerçekleştirilmesi uygundur\n",null,null,null,null,null,null,"O L U R"]
[null,null,null,null,null,null,null,null,"01.01.2023"]
[null,"Teklif Eden Yetkilinin",null,null,null,null,null,null,"Harcama Yetkilisi*"]
[]
[]
[]
[]
[null,"*Bu sütun, yönetim kurulu, komisyon veya komite kararlarıyla yapılan harcamalarda  kurul, komisyon, komite üyelerinin imzalarını kapsayacak şekilde düzenlenecektir."]

{"sheet":"Teslim","index":10,"n_rows":28,"n_cols":12,"rows_kept":28,"cut":false,"hidden":false,"merged":[[2,0,2,2],[0,12,1048575,16383],[16,3,16,7],[17,3,17,7],[3,1,3,8],[4,1,4,8],[1,0,1,11],[8,3,8,7],[9,3,9,7],[10,3,10,7],[11,3,11,7],[12,3,12,7],[2,10,2,11],[19,3,19,7],[26,0,26,2],[3,10,3,11],[4,10,4,11],[7,0,7,2],[13,3,13,7],[14,3,14,7],[15,3,15,7],[24,10,26,11],[27,0,27,11],[22,0,22,11],[7,11,8,11],[25,0,25,2],[24,0,24,2],[23,0,23,2],[7,3,7,8],[7,9,7,10],[18,3,18,7],[20,3,20,7],[23,10,23,11]]}
[null,null,null,null,null,null,null,null,null,null,null,"EK-1"]
["ÖDEME BELGESİ VE EKİ BELGELER TESLİM/TESELLÜM TUTANAĞI"]
["Harcama Birimi Kurumsal Kod",null,null,"13","01","32","62","285",null,"Muhasebe Birimi","KADİRLİ MALMÜDÜRLÜĞÜ"]
["Harcama Birimi","ÇALIŞKANLAR KÖYÜ HALİL SEVER ORTAOKULU MÜDÜRLÜĞÜ MÜDÜRLÜĞÜNE",null,null,null,null,null,null,null,"Düzenleme Tarihi","02.12.2022"]
["Form Sıra No",null,null,null,null,null,null,null,null,"Torba Numarası"]
[]
[]
["Ödeme Emri Belgesi",null,null,"Eki Belge",null,null,null,null,null,"Hak Sahibi",null,"Bütce Tutarı Gideri"]
["Tahakkuk İşlem No","Yevmiye Tarihi","Yevmiye No","Kanıtlayıcı Belge Türü",null,null,null,null,"Adedi","Adı Soyadı","TCK/VKN"]
["HYS-2022-258693654",null,null,"Ödeme Emri Belgesi",null,null,null,null,1,0,"123456789110"]
[null,null,null,"Taşınır İşlem Fişi",null,null,null,null,1]
[null,null,null,"Fatura",null,null,null,null,1]
[null,null,null,"Borcu Yoktur Belgesi",null,null,null,null,"1"]
[null,null,null,"Muayene Kabul ",null,null,null,null,"1"]
[null,null,null,"Piyasa Araştırma Tutanağı",null,null,null,null,"1"]
[null,null,null,"Onay Belgesi",null,null,null,null,"1"]
[null,null,null,"Yaklaşık Maliyet",null,null,null,null,"1"]
[]
[]
[]
[]
[]
[" Yukarıda hak sahibleri ile alacak tutarları gösterilen toplam 1 adet tahakkuk evrakı ve ait toplam 8 adet evrakı ve ekleri teslim alınmıştır. …./……/202.   Teslim Saati:"]
["TESLİM EDEN",null,null,null,null,null,null,null,null,null,"TESLİM ALAN"]
["deneme deneme",null,null,null,null,null,null,null,null,null,"Adı Soyadı \nİmza"]
["Müdür Yardımcısı"]
["İmza"]
["•\t Merkezi Yönetim Harcama belgeleri Yönetmeliğindeki belgenin adı yazılacaktır.\n••\tBu bölümler Muhasebe birimi tarafından muhasebeleştirme işlemi tamamlandıktan sonra doldurulacaktır.\n•••\tBu bölüme muhasebeleştirme işlemi tamamlandıktan sonra evrakın konulduğu torba numarası yazılacaktır."]

{"sheet":"Mys_yukle","index":11,"n_rows":1,"n_cols":8,"rows_kept":1,"cut":false,"hidden":false,"merged":[]}
["Ürün Adı","Miktar","Ölçü Birimi","Ürün No","Model","Marka","Birim Tutar","Firma VKN/TCKN"]

{"sheet":"Teknik_Şartname","index":12,"n_rows":45,"n_cols":5,"rows_kept":45,"cut":false,"hidden":false,"merged":[[31,0,31,1],[31,2,31,3],[32,0,32,1],[32,2,32,3],[29,0,29,1],[29,2,29,3],[30,0,30,1],[30,2,30,3],[27,0,27,1],[27,2,27,3],[28,0,28,1],[28,2,28,3],[25,0,25,1],[25,2,25,3],[26,0,26,1],[26,2,26,3],[24,0,24,1],[24,2,24,3],[21,0,21,1],[21,2,21,3],[22,0,22,1],[22,2,22,3],[19,0,19,1],[19,2,19,3],[20,0,20,1],[20,2,20,3],[23,0,23,1],[23,2,23,3],[0,0,0,4],[1,1,1,4],[3,3,3,4],[4,1,4,4],[5,3,5,4],[42,0,42,3],[43,0,43,3],[44,0,44,3],[9,1,9,4],[35,1,35,4],[37,1,37,4],[10,3,11,4],[36,1,36,4],[38,1,38,4],[39,1,39,4],[40,1,40,4],[33,0,33,1],[33,2,33,3],[16,1,16,4],[18,0,18,1],[18,2,18,3]]}
[{"$f":"Veri!A6","v":"ÇALIŞKANLAR KÖYÜ HALİL SEVER ORTAOKULU MÜDÜRLÜĞÜ MÜDÜRLÜĞÜ"}]
[null,"TEKNİK ŞARTNAME"]
["1.","\tGiriş, Amaç ve Kapsam"]
[null,null,"1.1",{"$f":"\"İdaremiz bünyesinde\"&Veri!A9&\" kapsamında aşağıda konusu yer alan şartnamemizdeki özellikleri belirtilen özellikte mal alım yapılacaktır. Satın alımımızda idaremizin ihtiyaçlarının tam, kaliteli, talebi karşılar nitelikte, sıfır ve kullanılmamış ürünlerden karşılanması ana kriterdir\"","v":"İdaremiz bünyesinde kapsamında aşağıda konusu yer alan şartnamemizdeki özellikleri belirtilen özellikte mal alım yapılacaktır. Satın alımımızda idaremizin ihtiyaçlarının tam, kaliteli, talebi karşılar nitelikte, sıfır ve kullanılmamış ürünlerden karşılanması ana kriterdir"}]
["2.","  Tanımlar"]
[null,null,"2.1","İşbu şartnamede geçen ve aşağıda listelenen kısaltmalar metin içerisinde açıkça başka anlamda kullanıldığı ifade edilmediği sürece karşılarında belirtilen anlama gelecektir"]
[null,"İdare",":",{"$f":"Veri!A2","v":"Çalışkanlar Köyü Halil Sever Ortaokulu Müdürlüğü Müdürlüğü"}]
[null,"Firama",":","İş için fiyat araştırması, teklif veren gerçek ve tüzel kişi"]
[]
["3.","Onaydan sonra Teklifin sunulması "]
[null,null,"3.1","Tekliflerin Sunulma Şekli ve Kabul Şartları;\na.)Zarfın üzerine isteklinin adı, soyadı veya ticaret unvanı, tebligata esas açık adresi\nb.)Zarfın yapışkan yeri istekli tarafından imzalanarak, mühürlenecek veya kaşelenecektir.\nc.)Tekliflerin yukarıda belirtilen şekilde sunulmaması ve kazıntı, silinti, yıpranmış, imzasız veya kaşe/mühür bulunmayan zarflar işleme alınmayacaktır."]
[]
["4.","Satın Alım Konusu İşe İlişkin Bilgiler"]
[null,"İşin Adı",":",{"$f":"Veri!A9","v":0}]
[]
["5.","Satın Alıma İlişkin Genel Koşullar"]
[null,"* Satın Alınacak ürün/ürünlerin özelliklerinin en az teknik şartnamede belirtilmiş özelliklerde olması ön koşuldur.\n* Müdürlüğümüzün ihtiyaçlarının tam, kaliteli, talebi karşılar nitelikte, sıfır ve kullanılmamış ürünlerden karşılanması öncelikli şarttır.\n* Firmalar tüm ürün/hizmete ait garanti sürelerini tekliflerinde açıkça ve ayrıca belirtecektir.\n* Tekliflerinizde ürünlerin teslimat tarihlerine ait bilgiler mutlaka bildirilmelidir.\n* Müdürlüğümüz tarafından konu ürün/malzemeyle ilgili numune talep edilmesi halinde Firma numune sağlamak durumundadır. Tüm nakliye, navlun, sigorta, gümrük, benzeri maliyetler ve tüm vergiler Firma tarafından ödenmek zorundadır. Aksi halde teklifleri kabul edilmeyecektir.\n* Satın alımımıza ait şartname maddelerinin tümüne teklif verilecektir. Ayrı Ayrı, Parçalı ve Alternatif teklif verilemez.\n* Alımla ilgili tüm dokümanlar kaşelenmeli ve imzalanarak onaylanması gerekmektedir.\n* FİRMA, resmi teklifinde belirtmiş olduğu ürün fiyatları haricinde başka hiçbir koşul veya isim altında bedel talep etmeyecektir. \n* İşbu dokümanlarından doğan/doğacak damga vergisi FİRMA tarafından ödenecektir. "]
[]
["Sıra No",null,"Mal/Malzemenin Adı",null,"Teknik Özellikleri"]
[{"$f":"IF(NOT(ISBLANK(C20)),COUNTA($C$20:C20),\"\")","v":1},null,"Sıvı Sabun",null,"1. Sıvı el sabunu parfüm içermelidir. 2. Sıvı el sabunu kolayca köpürebilmeli ve kolayca durulanabilmelidir. 3. Sıvı el sabunu cildi kurutmamalı, cildi tahriş etmemeli, cilt irritasyonuna neden olmamalı ve ellerde alerjik reaksiyona neden olmamalıdır."]
[{"$f":"IF(NOT(ISBLANK(C21)),COUNTA($C$20:C21),\"\")","v":""}]
[{"$f":"IF(NOT(ISBLANK(C22)),COUNTA($C$20:C22),\"\")","v":""}]
[{"$f":"IF(NOT(ISBLANK(C23)),COUNTA($C$20:C23),\"\")","v":""}]
[{"$f":"IF(NOT(ISBLANK(C24)),COUNTA($C$20:C24),\"\")","v":""}]
[{"$f":"IF(NOT(ISBLANK(C25)),COUNTA($C$20:C25),\"\")","v":""}]
[{"$f":"IF(NOT(ISBLANK(C26)),COUNTA($C$20:C26),\"\")","v":""}]
[{"$f":"IF(NOT(ISBLANK(C27)),COUNTA($C$20:C27),\"\")","v":""}]
[{"$f":"IF(NOT(ISBLANK(C28)),COUNTA($C$20:C28),\"\")","v":""}]
[{"$f":"IF(NOT(ISBLANK(C29)),COUNTA($C$20:C29),\"\")","v":""}]
[{"$f":"IF(NOT(ISBLANK(C30)),COUNTA($C$20:C30),\"\")","v":""}]
[{"$f":"IF(NOT(ISBLANK(C31)),COUNTA($C$20:C31),\"\")","v":""}]
[{"$f":"IF(NOT(ISBLANK(C32)),COUNTA($C$20:C32),\"\")","v":""}]
[{"$f":"IF(NOT(ISBLANK(C33)),COUNTA($C$20:C33),\"\")","v":""}]
[{"$f":"IF(NOT(ISBLANK(C34)),COUNTA($C$20:C34),\"\")","v":""}]
[]
["6.","Garanti, Destek, Servis Şartları"]
[null,"Sorunların giderilme süresinin tedarikinin 7 (yedi) takvim gününü aşması ve alıcının ihtarına rağmen sorunun devam etmesi durumunda, gecikilen her takvim günü için Firmaya cezai işlem uygulanır"]
["7.","Teslimat Şartları"]
[null,{"$f":"\"7.1 \tÜrün/Ürünlerin teslimat yeri \" &Veri!A32&\"\"","v":"7.1 \tÜrün/Ürünlerin teslimat yeri idarenin adresini yazınız idarenin adresini yazınız idarenin adresini yazınız idarenin adresini yazınız idarenin adresini yazınız idarenin adresini yazınız"}]
[null,"7.2 \tSatın alınacak mallar şartname dokümanında belirtilen tarih, yer, şekil ve usulünde teslim edilecektir."]
[null,"7.3\tTeslimat, ürünlerin indirilip Müdürlüğümüzün Kabul ve Muayene komisyonu tarafından sayılıp, kalite kontrolü yapıldıktan sonra teslimat gerçekleşmiş sayılacaktır."]
[null,null,null,null,"14.11.2024"]
[null,null,null,null,"İmza/Mühür"]
["FİRMA/ KAŞE "]
["İmza"]

{"sheet":"Açıklama","index":13,"n_rows":1,"n_cols":1,"rows_kept":1,"cut":false,"hidden":false,"merged":[[0,0,0,8]]}
["Doğrudan Temin İş Akış Şeması"]

{"sheet":"Veri","index":14,"n_rows":41,"n_cols":14,"rows_kept":41,"cut":false,"hidden":false,"merged":[]}
["Çalışkanlar Köyü Halil Sever Ortaokulu Müdürlüğü","Müdürlüğü",null,null,null,null,null,null,null,"Kurum Kodu",null,null,"Sayı","Birleşmiş hali"]
[{"$f":"A1&\" \"&B1","v":"Çalışkanlar Köyü Halil Sever Ortaokulu Müdürlüğü Müdürlüğü"},null,null,null,null,null,null,1,"İhtiyaç Belgesi",67484744,"-934.01","/",148,{"$f":"J2&\"\"&K2&\"\"&L2&\"\"&M2","v":"67484744-934.01/148"}]
["ne",null,null,null,null,null,null,2,"Komisyon Onay",67484744,"-934.01.99","/",148,{"$f":"J3&\"\"&K3&\"\"&L3&\"\"&M3","v":"67484744-934.01.99/148"}]
[{"$f":"A2&\"\"&A3","v":"Çalışkanlar Köyü Halil Sever Ortaokulu Müdürlüğü Müdürlüğüne"},null,null,null,null,null,null,3,"Fiyat Araştıma Teklif",67484744,"-934.01.03","/",148,"67484744-934.01.03/148"]
[null,null,null,null,null,null,null,4,"Yaklaşık Maliyet",67484744,"-934.01.03","/",null,"67484744-934.01.03/"]
[{"$f":"UPPER(A2)","v":"ÇALIŞKANLAR KÖYÜ HALİL SEVER ORTAOKULU MÜDÜRLÜĞÜ MÜDÜRLÜĞÜ"},null,null,null,null,null,null,5,"Onay",67484744,"-934.01.02","/",148,"67484744-934.01.02/148"]
[{"$f":"UPPER(A4)","v":"ÇALIŞKANLAR KÖYÜ HALİL SEVER ORTAOKULU MÜDÜRLÜĞÜ MÜDÜRLÜĞÜNE"},null,null,null,null,null,null,7,"Piyasa Araş",67484744,"-934.01.11","/",null,"67484744-934.01.11/"]
[null,null,null,null,null,null,null,8,"Muayene Kabul",67484744,"-934.01.99","/",null,"67484744-934.01.99/"]
[null,null,null,null,null,null,null,null,"Hacama",{"$f":"J8","v":67484744},"-934.01.99","/",null,"67484744-934.01.99/"]
[{"$f":"UPPER(A9)","v":""}]
[]
[]
[]
["En Küçük",{"$f":"SMALL(Piyasa_Arş_Tut!U25:AR25,1)","v":0},{"$f":"IF(B14=Piyasa_Arş_Tut!X25,Piyasa_Arş_Tut!U8,IF(B14=Piyasa_Arş_Tut!AD25,Piyasa_Arş_Tut!AA8,IF(B14=Piyasa_Arş_Tut!AJ25,Piyasa_Arş_Tut!AG8)))","v":0},{"$f":"IF($C$14=Piyasa_Arş_Tut!$U$8,Piyasa_Arş_Tut!U10,IF(Veri!$C$14=Piyasa_Arş_Tut!$AA$8,Piyasa_Arş_Tut!AA10,IF(Veri!$C$14=Piyasa_Arş_Tut!$AG$8,Piyasa_Arş_Tut!AG10)))","v":0}]
[null,null,null,{"$f":"IF($C$14=Piyasa_Arş_Tut!$U$8,Piyasa_Arş_Tut!U11,IF(Veri!$C$14=Piyasa_Arş_Tut!$AA$8,Piyasa_Arş_Tut!AA11,IF(Veri!$C$14=Piyasa_Arş_Tut!$AG$8,Piyasa_Arş_Tut!AG11)))","v":0}]
[null,null,null,{"$f":"IF($C$14=Piyasa_Arş_Tut!$U$8,Piyasa_Arş_Tut!U12,IF(Veri!$C$14=Piyasa_Arş_Tut!$AA$8,Piyasa_Arş_Tut!AA12,IF(Veri!$C$14=Piyasa_Arş_Tut!$AG$8,Piyasa_Arş_Tut!AG12)))","v":0}]
[null,null,null,{"$f":"IF($C$14=Piyasa_Arş_Tut!$U$8,Piyasa_Arş_Tut!U13,IF(Veri!$C$14=Piyasa_Arş_Tut!$AA$8,Piyasa_Arş_Tut!AA13,IF(Veri!$C$14=Piyasa_Arş_Tut!$AG$8,Piyasa_Arş_Tut!AG13)))","v":0}]
[null,null,null,{"$f":"IF($C$14=Piyasa_Arş_Tut!$U$8,Piyasa_Arş_Tut!U14,IF(Veri!$C$14=Piyasa_Arş_Tut!$AA$8,Piyasa_Arş_Tut!AA14,IF(Veri!$C$14=Piyasa_Arş_Tut!$AG$8,Piyasa_Arş_Tut!AG14)))","v":0},null,null,null,null,null,"b"]
[null,null,null,{"$f":"IF($C$14=Piyasa_Arş_Tut!$U$8,Piyasa_Arş_Tut!U15,IF(Veri!$C$14=Piyasa_Arş_Tut!$AA$8,Piyasa_Arş_Tut!AA15,IF(Veri!$C$14=Piyasa_Arş_Tut!$AG$8,Piyasa_Arş_Tut!AG15)))","v":0}]
[null,null,null,{"$f":"IF($C$14=Piyasa_Arş_Tut!$U$8,Piyasa_Arş_Tut!U16,IF(Veri!$C$14=Piyasa_Arş_Tut!$AA$8,Piyasa_Arş_Tut!AA16,IF(Veri!$C$14=Piyasa_Arş_Tut!$AG$8,Piyasa_Arş_Tut!AG16)))","v":0}]
[null,null,null,{"$f":"IF($C$14=Piyasa_Arş_Tut!$U$8,Piyasa_Arş_Tut!U17,IF(Veri!$C$14=Piyasa_Arş_Tut!$AA$8,Piyasa_Arş_Tut!AA17,IF(Veri!$C$14=Piyasa_Arş_Tut!$AG$8,Piyasa_Arş_Tut!AG17)))","v":0}]
[null,null,null,{"$f":"IF($C$14=Piyasa_Arş_Tut!$U$8,Piyasa_Arş_Tut!U18,IF(Veri!$C$14=Piyasa_Arş_Tut!$AA$8,Piyasa_Arş_Tut!AA18,IF(Veri!$C$14=Piyasa_Arş_Tut!$AG$8,Piyasa_Arş_Tut!AG18)))","v":0}]
[null,null,null,{"$f":"IF($C$14=Piyasa_Arş_Tut!$U$8,Piyasa_Arş_Tut!U19,IF(Veri!$C$14=Piyasa_Arş_Tut!$AA$8,Piyasa_Arş_Tut!AA19,IF(Veri!$C$14=Piyasa_Arş_Tut!$AG$8,Piyasa_Arş_Tut!AG19)))","v":0}]
[null,null,null,{"$f":"IF($C$14=Piyasa_Arş_Tut!$U$8,Piyasa_Arş_Tut!U20,IF(Veri!$C$14=Piyasa_Arş_Tut!$AA$8,Piyasa_Arş_Tut!AA20,IF(Veri!$C$14=Piyasa_Arş_Tut!$AG$8,Piyasa_Arş_Tut!AG20)))","v":0}]
[null,null,null,{"$f":"IF($C$14=Piyasa_Arş_Tut!$U$8,Piyasa_Arş_Tut!U21,IF(Veri!$C$14=Piyasa_Arş_Tut!$AA$8,Piyasa_Arş_Tut!AA21,IF(Veri!$C$14=Piyasa_Arş_Tut!$AG$8,Piyasa_Arş_Tut!AG21)))","v":0}]
[null,null,null,{"$f":"IF($C$14=Piyasa_Arş_Tut!$U$8,Piyasa_Arş_Tut!U22,IF(Veri!$C$14=Piyasa_Arş_Tut!$AA$8,Piyasa_Arş_Tut!AA22,IF(Veri!$C$14=Piyasa_Arş_Tut!$AG$8,Piyasa_Arş_Tut!AG22)))","v":0}]
[null,null,null,{"$f":"IF($C$14=Piyasa_Arş_Tut!$U$8,Piyasa_Arş_Tut!U23,IF(Veri!$C$14=Piyasa_Arş_Tut!$AA$8,Piyasa_Arş_Tut!AA23,IF(Veri!$C$14=Piyasa_Arş_Tut!$AG$8,Piyasa_Arş_Tut!AG23)))","v":0}]
[null,null,null,{"$f":"IF($C$14=Piyasa_Arş_Tut!$U$8,Piyasa_Arş_Tut!U24,IF(Veri!$C$14=Piyasa_Arş_Tut!$AA$8,Piyasa_Arş_Tut!AA24,IF(Veri!$C$14=Piyasa_Arş_Tut!$AG$8,Piyasa_Arş_Tut!AG24)))","v":0}]
[]
[]
[]
["idarenin adresini yazınız idarenin adresini yazınız idarenin adresini yazınız idarenin adresini yazınız idarenin adresini yazınız idarenin adresini yazınız"]
[]
[{"$f":"MAX(Muayene_Kabul!A11:A25)","v":0}]
[]
[{"$f":"İhtiyaç_Listesi!$P$6","v":"14.11.2024"}]
[{"$f":"Muayene_Kabul!D7","v":"17.11.2024"}]
[{"$f":"A37-A36","v":3}]
[]
["İhale Usulü","4734 Sayılı Kamu İhale Kanunu'nun 22/d Maddesi"]
[null,"Yaklaşık Maliyet",{"$f":"ROUND(Yaklaşık_Maliyet!AU25,2)","v":0}]